[Event "Memorial Ukrainian Chess Warriors 2024"]
[Site "Lviv"]
[Date "2024.03.15"]
[Round "8.5"]
[White "Grinev, Valeriy"]
[Black "Hnatyshyn, Anastasiya"]
[Result "1-0"]
[ECO "D30"]
[WhiteElo "2422"]
[BlackElo "2017"]
[Annotator "TA"]
[PlyCount "81"]
[EventDate "2024.03.06"]
[EventType "swiss"]
[EventCountry "UKR"]
[SourceTitle "playchess.com"]
[Source "ChessBase"]
[SourceQuality "1"]
[TimeControl "600+5"]

{[%evp 15,81,-19,-16,-27,-20,-20,-22,-43,-43,-24,-22,-43,-15,-16,-14,-21,-14,-16,-21,-13,-30,-104,0,0,0,0,58,-72,-70,-67,-71,-73,-71,-63,-60,-83,-76,-78,-86,-194,-113,-348,-227,-209,-132,-245,-202,-197,-205,-202,-203,-203,-58,-52,-9,-2,-4,-10,-4,-10,0,0,26,25,113,96,29996,29997]} 1. d4 {[%emt 0:00:04]} d5 {[%emt 0:00:01]} 2. c4 {[%emt 0:00:02]} e6 {[%emt 0:00:01]} 3. Nf3 {[%emt 0:00:02]} Nf6 {[%emt 0:00:03]} 4. g3 {[%emt 0:00:02]} dxc4 {[%emt 0:00:02]} 5. Qa4+ {[%emt 0:00:02]} Nbd7 {[%emt 0:00:09]} 6. Bg2 {[%emt 0:00:05]} a6 {[%emt 0:00:02]} 7. Qxc4 {[%emt 0:00:03]} b5 {[%emt 0:00:02]} 8. Qc6 {[%emt 0:00:04]} Ra7 {[%emt 0:00:02]} 9. Bf4 {[%emt 0:00:07]} Bb7 {[%emt 0:00:24]} 10. Qc2 {[%emt 0:00:12][%cal Oa2a4]} c5 {[%emt 0:00:09]} 11. Nbd2 {[%emt 0:01:25] The position is equal.} Ra8 {[%emt 0:01:06]} 12. O-O {[%emt 0:00:38]} Rc8 {[%emt 0:00:07]} 13. Rac1 {[%emt 0:00:16]} c4 {[%emt 0:00:44]} 14. e4 {[%emt 0:01:05][%cal Be2e4,Be4e5][%mdl 32]} Be7 {[%emt 0:00:16]} 15. h4 {[%emt 0:00:30]} h6 {[%emt 0:00:24]} 16. d5 {[%emt 0:00:25]} exd5 {[%emt 0:01:24]} 17. e5 {[%emt 0:00:01]} Ne4 {[%emt 0:00:02]} 18. Nd4 {[%emt 0:00:17]} (18. Nxe4 $11 dxe4 19. Rfd1) 18... O-O {[%emt 0:01:00]} (18... Ndc5 $1 $17 {aiming for ...Nd3.} 19. Nf5 g6 (19... O-O 20. Nxe4 dxe4 21. Qe2 $11) 20. Nxe4 dxe4 21. Nd6+ Bxd6 22. exd6 g5) 19. Nxe4 $11 {[%emt 0:01:04]} dxe4 {[%emt 0:00:02]} 20. Rcd1 {[%emt 0:00:03][%cal Od4f5] Black must now prevent Nf5!} Re8 {[%emt 0:02:46]} (20... Nc5 $11 21. Nf5 Qe8 (21... Nd3 22. Qe2 $11)) 21. Bxe4 {[%emt 0:01:28]} (21. Qe2 $14 {stays ahead.} Bd5 22. Nf5) 21... Bxe4 $17 {[%emt 0:00:20]} 22. Qxe4 {[%emt 0:00:01] e6 would now be deadly.} Nc5 $36 {[%emt 0:00:02][%mdl 2048] Black has strong initiative.} 23. Qf3 {[%emt 0:00:02][%cal Oe5e6]} Nd3 {[%emt 0:00:14]} 24. Nf5 {[%emt 0:00:43]} Bf8 {[%emt 0:00:06]} 25. b3 {[%emt 0:00:03]} Qb6 {[%emt 0:00:31]} 26. bxc4 {[%emt 0:00:05]} bxc4 {[%emt 0:00:01][%cal Ob6g6]} 27. Qe4 {[%emt 0:01:19]} (27. Qg4 $17 {was worth a try.} Kh8 (27... Nxe5 $2 {is the wrong capture.} 28. Bxe5 h5 29. Qf4 $18) 28. Nd6 Bxd6 29. exd6) 27... Qc6 {[%emt 0:00:36]} ({Better is} 27... Qg6 $19 {...Rcd8 is the strong threat.} 28. Rd2 Nc5) 28. Qe3 $2 {[%emt 0:00:40]} (28. Qxc6 $17 Rxc6 29. Rd2) 28... Qg6 {[%emt 0:00:50]} 29. Rxd3 {[%emt 0:00:54]} Qxf5 {[%emt 0:00:41]} 30. Rc3 {[%emt 0:00:28]} (30. Rd5 $17 {keeps fighting.}) 30... Bb4 {[%emt 0:00:03]} 31. Rcc1 {[%emt 0:00:02]} c3 {[%emt 0:00:06]} 32. Qd4 {[%emt 0:00:03] [#]} a5 {[%emt 0:00:08]} 33. a3 {[%emt 0:00:01]} Bxa3 {[%emt 0:00:17]} (33... Red8 $19 34. Qb6 Bc5 (34... Bxa3 35. Rxc3 Bb4 36. Rxc8 $15) 35. Qxa5 c2) 34. Rxc3 $15 {[%emt 0:00:01]} Bb2 {[%emt 0:00:05]} 35. Rxc8 {[%emt 0:00:01]} Bxd4 {[%emt 0:00:02]} 36. Rxe8+ {[%emt 0:00:02]} Kh7 {[%emt 0:00:00] With the idea ...a4.} 37. Rd8 {[%emt 0:00:06]} Bc3 {[%emt 0:00:11][%cal Oa5a4]} (37... Bxe5 $2 {loses.} 38. Rd5 f6 39. Rxa5 $18) 38. Rc1 {[%emt 0:00:11]} Bb4 {[%emt 0:00:08]} 39. Rcc8 {[%emt 0:00:04] Strongly threatening Rh8+.} Qb1+ {[%emt 0:00:04] [#]} (39... Kg6 $11 {keeps the balance.}) 40. Kh2 $1 $16 {[%emt 0:00:07] Intending h5 and mate.} Qe4 $2 {[%emt 0:00:02][%mdl 8192]} (40... Kg6 $16) 41. h5 {[%emt 0:00:04] What a bad dream for Black.   Weighted Error Value: White=0.29 (precise) /Black=0.55.  Loses game:     	White=1     	Black=1      Mistake:       	White=4     	Black=5      Inaccurate:     	---       	Black=5      OK:         	White=13    	Black=9      Best:        	White=4     	Black=4      Strong:       	White=1     	---} 1-0

[Event "Memorial Ukrainian Chess Warriors 2024"]
[Site "Lviv"]
[Date "2024.03.15"]
[Round "8.6"]
[White "Guivan, Vasily"]
[Black "Nedilko, Vasily"]
[Result "1/2-1/2"]
[ECO "A45"]
[WhiteElo "2013"]
[BlackElo "2324"]
[Annotator "ChessBase"]
[PlyCount "265"]
[EventDate "2024.03.06"]
[EventType "swiss"]
[EventCountry "UKR"]
[SourceTitle "playchess.com"]
[Source "ChessBase"]
[SourceQuality "1"]
[TimeControl "600+5"]

1. d4 {[%emt 0:00:04]} Nf6 {[%emt 0:00:01]} 2. f3 {[%emt 0:00:03]} d5 {[%emt 0:00:43]} 3. e4 {[%emt 0:00:01]} dxe4 {[%emt 0:00:06]} 4. Nc3 {[%emt 0:00:01]} e3 {[%emt 0:00:19]} 5. Bxe3 {[%emt 0:00:03]} g6 {[%emt 0:00:08]} 6. Qd2 {[%emt 0:00:09]} Bg7 {[%emt 0:00:01]} 7. O-O-O {[%emt 0:00:08]} O-O {[%emt 0:00:19]} 8. h4 {[%emt 0:00:07]} h5 {[%emt 0:00:52]} 9. g4 {[%emt 0:00:02]} Nbd7 {[%emt 0:01:34]} 10. Bh6 {[%emt 0:00:21]} c5 {[%emt 0:00:21]} 11. Bxg7 {[%emt 0:00:10]} Kxg7 {[%emt 0:00:01]} 12. Nh3 {[%emt 0:00:05]} cxd4 {[%emt 0:00:08]} 13. Qxd4 {[%emt 0:00:08]} Qb6 {[%emt 0:00:02]} 14. g5 {[%emt 0:00:41]} Qxd4 {[%emt 0:00:05]} 15. Rxd4 {[%emt 0:00:01]} Ne8 {[%emt 0:00:20]} 16. Bb5 {[%emt 0:00:22]} Nb6 {[%emt 0:01:01]} 17. Nf2 {[%emt 0:01:06]} Nd6 {[%emt 0:00:28]} 18. Re1 {[%emt 0:00:36]} Nf5 {[%emt 0:00:08]} 19. Rf4 {[%emt 0:00:23]} Be6 {[%emt 0:01:46]} 20. Bd3 {[%emt 0:00:12]} Rac8 {[%emt 0:00:57]} 21. Bxf5 {[%emt 0:00:15]} gxf5 {[%emt 0:00:03]} 22. Nd3 {[%emt 0:00:27]} Rfd8 {[%emt 0:01:16]} 23. Rb4 {[%emt 0:00:23]} Nd5 {[%emt 0:00:54]} 24. Nxd5 {[%emt 0:00:11]} Bxd5 {[%emt 0:00:01]} 25. Re3 {[%emt 0:00:57]} Bc6 {[%emt 0:00:24]} 26. Nf4 {[%emt 0:00:10]} Rd6 {[%emt 0:00:08]} 27. Nxh5+ Kf8 28. Nf4 {[%emt 0:00:28]} Rcd8 {[%emt 0:00:01]} 29. b3 {[%emt 0:00:20]} Rd1+ {[%emt 0:00:11]} 30. Kb2 {[%emt 0:00:01]} Rf1 {[%emt 0:00:02]} 31. Re5 {[%emt 0:00:18]} e6 {[%emt 0:00:07]} 32. g6 {[%emt 0:00:19]} Rxf3 {[%emt 0:00:02]} 33. gxf7 {[%emt 0:00:08]} Kxf7 {[%emt 0:00:02]} 34. Nxe6 {[%emt 0:00:05]} Kf6 {[%emt 0:00:12]} 35. Nxd8 {[%emt 0:00:59]} Kxe5 {[%emt 0:00:04]} 36. Nf7+ {[%emt 0:00:17]} Kf6 {[%emt 0:00:05]} 37. Ng5 {[%emt 0:00:07]} Rf2 {[%emt 0:00:02]} 38. Nh3 {[%emt 0:00:21]} Rh2 {[%emt 0:00:08]} 39. Nf4 {[%emt 0:00:01]} Be4 {[%emt 0:00:02]} 40. h5 {[%emt 0:00:06]} Rxc2+ 41. Ka3 Rf2 {[%emt 0:00:14]} 42. Nh3 {[%emt 0:00:40]} Rh2 {[%emt 0:00:02]} 43. Nf4 {[%emt 0:00:03]} Kg5 {[%emt 0:00:01]} 44. Ne6+ {[%emt 0:00:17]} Kxh5 {[%emt 0:00:04]} 45. Nc5 {[%emt 0:00:03]} Bb1 {[%emt 0:00:09]} 46. Rxb7 {[%emt 0:00:02]} Rxa2+ {[%emt 0:00:05]} 47. Kb4 {[%emt 0:00:00]} Kg4 {[%emt 0:00:02]} 48. Rg7+ {[%emt 0:00:05]} Kf3 {[%emt 0:00:05]} 49. Ne6 {[%emt 0:00:05]} Be4 {[%emt 0:00:04]} 50. Rf7 {[%emt 0:00:07]} Ke3 {[%emt 0:00:03]} 51. Nc5 {[%emt 0:00:08]} Ra1 {[%emt 0:00:08]} 52. Re7 {[%emt 0:00:08]} Kf3 {[%emt 0:00:06]} 53. Rf7 {[%emt 0:00:05]} Ra2 {[%emt 0:00:05]} 54. Na4 {[%emt 0:00:06]} a6 {[%emt 0:00:04]} 55. Rf6 {[%emt 0:00:04]} f4 {[%emt 0:00:09]} 56. Rxa6 {[%emt 0:00:06]} Kf2 {[%emt 0:00:08]} 57. Re6 {[%emt 0:00:03]} Bd3 {[%emt 0:00:04]} 58. Nc3 {[%emt 0:00:08]} Ra1 {[%emt 0:00:05]} 59. Rd6 {[%emt 0:00:09]} Be2 {[%emt 0:00:04]} 60. Ne4+ {[%emt 0:00:11]} Ke3 {[%emt 0:00:04]} 61. Re6 {[%emt 0:00:22]} f3 {[%emt 0:00:03]} 62. Ng5+ {[%emt 0:00:04]} Kf2 {[%emt 0:00:02]} 63. Nxf3 {[%emt 0:00:05]} Bxf3 {[%emt 0:00:00]} 64. Kc5 {[%emt 0:00:09]} Rc1+ {[%emt 0:00:03]} 65. Kb4 {[%emt 0:00:03]} Kg3 {[%emt 0:00:01]} 66. Rf6 {[%emt 0:00:03]} Be4 {[%emt 0:00:07]} 67. Ka5 {[%emt 0:00:04]} Ra1+ {[%emt 0:00:02]} 68. Kb6 {[%emt 0:00:05]} Rb1 {[%emt 0:00:01]} 69. Kc5 {[%emt 0:00:06]} Rxb3 {[%emt 0:00:04]} 70. Kd4 {[%emt 0:00:01]} Bf3 {[%emt 0:00:03]} 71. Rf8 {[%emt 0:00:03]} Rb1 {[%emt 0:00:02]} 72. Rh8 {[%emt 0:00:03]} Rd1+ {[%emt 0:00:01]} 73. Ke3 {[%emt 0:00:01]} Re1+ {[%emt 0:00:01]} 74. Kd4 {[%emt 0:00:01]} Bg4 {[%emt 0:00:03]} 75. Rf8 {[%emt 0:00:03]} Re7 {[%emt 0:00:05]} 76. Kd5 {[%emt 0:00:04]} Bf3+ {[%emt 0:00:04]} 77. Kd4 {[%emt 0:00:01]} Kf2 {[%emt 0:00:02]} 78. Rf6 {[%emt 0:00:02]} Re4+ {[%emt 0:00:01]} 79. Kd3 {[%emt 0:00:05]} Ra4 {[%emt 0:00:02]} 80. Rf8 {[%emt 0:00:04]} Kg3 {[%emt 0:00:09]} 81. Rf6 {[%emt 0:00:03]} Bg4 {[%emt 0:00:04]} 82. Ke3 {[%emt 0:00:06]} Ra5 {[%emt 0:00:02]} 83. Rf8 {[%emt 0:00:02]} Re5+ {[%emt 0:00:03]} 84. Kd4 {[%emt 0:00:02]} Re7 {[%emt 0:00:01]} 85. Rf6 {[%emt 0:00:04]} Bf3 {[%emt 0:00:04]} 86. Rf8 {[%emt 0:00:09]} Rh7 {[%emt 0:00:07]} 87. Rf6 {[%emt 0:00:08]} Rh4+ {[%emt 0:00:01]} 88. Ke5 {[%emt 0:00:03]} Kf2 {[%emt 0:00:04]} 89. Rf8 {[%emt 0:00:02]} Ra4 {[%emt 0:00:02]} 90. Rf6 {[%emt 0:00:08]} Ke3 {[%emt 0:00:01]} 91. Rf8 {[%emt 0:00:06]} Ra5+ {[%emt 0:00:00]} 92. Kd6 {[%emt 0:00:01]} Be4 {[%emt 0:00:03]} 93. Rh8 {[%emt 0:00:04]} Kd4 {[%emt 0:00:01]} 94. Rh4 {[%emt 0:00:05]} Ra6+ {[%emt 0:00:01]} 95. Kc7 {[%emt 0:00:01]} Rg6 {[%emt 0:00:23]} 96. Kd7 {[%emt 0:00:05]} Rf6 {[%emt 0:00:03]} 97. Ke7 {[%emt 0:00:01]} Ra6 {[%emt 0:00:01]} 98. Kf7 {[%emt 0:00:04]} Ke5 {[%emt 0:00:01]} 99. Rh2 {[%emt 0:00:10]} Ra7+ {[%emt 0:00:04]} 100. Ke8 {[%emt 0:00:20]} Bd5 {[%emt 0:00:06]} 101. Rh5+ {[%emt 0:00:07]} Kd6 {[%emt 0:00:02]} 102. Kf8 {[%emt 0:00:14]} Rf7+ {[%emt 0:00:05]} 103. Ke8 {[%emt 0:00:02]} Rg7 {[%emt 0:00:03]} 104. Rh8 {[%emt 0:00:08]} Be6 {[%emt 0:00:17]} 105. Kf8 {[%emt 0:00:11]} Rg3 {[%emt 0:00:09]} 106. Ke8 {[%emt 0:00:08]} Ra3 {[%emt 0:00:02]} 107. Kf8 {[%emt 0:00:02]} Rg3 {[%emt 0:00:02]} 108. Ke8 {[%emt 0:00:02]} Rg4 {[%emt 0:00:45]} 109. Kf8 {[%emt 0:00:09]} Rg5 {[%emt 0:00:20]} 110. Ke8 {[%emt 0:00:04]} Rg6 {[%emt 0:00:19]} 111. Kf8 {[%emt 0:00:04]} Kd7 {[%emt 0:00:09]} 112. Rh7+ {[%emt 0:00:12]} Kd6 {[%emt 0:00:02]} 113. Rh8 {[%emt 0:00:06]} Ke5 {[%emt 0:00:07]} 114. Rh2 {[%emt 0:00:19]} Rg8+ {[%emt 0:00:02]} 115. Ke7 {[%emt 0:00:01]} Rg7+ {[%emt 0:00:01]} 116. Kf8 {[%emt 0:00:02]} Ra7 {[%emt 0:00:05]} 117. Rh6 {[%emt 0:00:15]} Rf7+ {[%emt 0:00:04]} 118. Kg8 {[%emt 0:00:07]} Rf2+ {[%emt 0:00:09]} 119. Kg7 {[%emt 0:00:03]} Bf5 {[%emt 0:00:03]} 120. Rb6 {[%emt 0:00:12]} Rg2+ {[%emt 0:00:03]} 121. Kf7 {[%emt 0:00:04]} Be4 {[%emt 0:00:06]} 122. Re6+ {[%emt 0:00:03]} Kd5 {[%emt 0:00:01]} 123. Rf6 {[%emt 0:00:03]} Rg5 {[%emt 0:00:05]} 124. Rb6 {[%emt 0:00:08]} Ke5 {[%emt 0:00:07]} 125. Rh6 {[%emt 0:00:18]} Bd5+ {[%emt 0:00:03]} 126. Kf8 {[%emt 0:00:09]} Rg8+ {[%emt 0:00:06]} 127. Ke7 {[%emt 0:00:01]} Rg7+ {[%emt 0:00:01]} 128. Kf8 {[%emt 0:00:07]} Ra7 {[%emt 0:00:02]} 129. Rh2 {[%emt 0:00:17]} Rf7+ {[%emt 0:00:02]} 130. Ke8 {[%emt 0:00:02]} Rg7 {[%emt 0:00:03]} 131. Kf8 {[%emt 0:00:06]} Ra7 {[%emt 0:00:06]} 132. Ke8 {[%emt 0:00:03]} Kd6 133. Kf8 1/2-1/2

[Event "Memorial Ukrainian Chess Warriors 2024"]
[Site "Lviv"]
[Date "2024.03.15"]
[Round "8.7"]
[White "Lehinovych, Maksym"]
[Black "Sydoryka, Vladyslav"]
[Result "0-1"]
[ECO "A06"]
[WhiteElo "1618"]
[BlackElo "2310"]
[Annotator "RC"]
[PlyCount "84"]
[EventDate "2024.03.06"]
[EventType "swiss"]
[EventCountry "UKR"]
[SourceTitle "playchess.com"]
[Source "ChessBase"]
[SourceQuality "1"]
[TimeControl "600+5"]

1. Nf3 {[%emt 0:00:02]} d5 {[%emt 0:00:01]} 2. g3 {[%emt 0:00:01]} Bg4 {[%emt 0:00:01]} 3. Bg2 {[%emt 0:00:02]} Nd7 {[%emt 0:00:01]} 4. h3 {[%emt 0:00:02]} Bh5 {[%emt 0:00:01]} 5. O-O {[%emt 0:00:03]} c6 {[%emt 0:00:02]} 6. c4 {[%emt 0:00:05]} Bxf3 {[%emt 0:00:03]} 7. Bxf3 {[%emt 0:00:02]} Ne5 {[%emt 0:00:02]} 8. Bg2 {[%emt 0:00:39]} Nxc4 {[%emt 0:00:01]} 9. b3 {[%emt 0:00:02]} Nb6 {[%emt 0:00:42]} 10. Bb2 {[%emt 0:00:02]} e6 {[%emt 0:00:10]} 11. Nc3 {[%emt 0:00:02]} Nf6 {[%emt 0:00:07]} 12. d3 {[%emt 0:00:05]} d4 {[%emt 0:00:36]} 13. Nb1 {[%emt 0:00:07]} h5 {[%emt 0:02:15]} 14. Nd2 {[%emt 0:00:15]} h4 {[%emt 0:00:43]} 15. g4 {[%emt 0:00:01]} Rc8 {[%emt 0:00:33]} 16. Nf3 {[%emt 0:00:16]} c5 {[%emt 0:00:01]} 17. b4 {[%emt 0:00:28]} Bd6 {[%emt 0:01:02]} 18. bxc5 {[%emt 0:00:39]} Bxc5 {[%emt 0:00:02]} 19. a4 {[%emt 0:00:52]} Qd6 {[%emt 0:01:23]} 20. a5 {[%emt 0:00:06]} Nbd7 {[%emt 0:00:01]} 21. Qa4 {[%emt 0:00:56]} e5 {[%emt 0:00:09]} 22. Nd2 {[%emt 0:00:09]} b5 {[%emt 0:02:49]} 23. Qxb5 {[%emt 0:00:51]} Rb8 {[%emt 0:00:01]} 24. Qa4 {[%emt 0:00:01]} O-O {[%emt 0:00:29]} 25. Ba3 {[%emt 0:00:53]} Rfc8 {[%emt 0:00:22]} 26. Bxc5 {[%emt 0:01:23]} Nxc5 {[%emt 0:00:03]} 27. Qa3 {[%emt 0:00:03]} Nd5 {[%emt 0:00:28]} 28. Nc4 {[%emt 0:00:22]} Qe6 {[%emt 0:00:07]} 29. Rfb1 {[%emt 0:00:16]} Rxb1+ {[%emt 0:00:05]} 30. Rxb1 {[%emt 0:00:02]} Nc3 {[%emt 0:00:01]} 31. Rb2 {[%emt 0:00:14]} e4 {[%emt 0:00:01]} 32. Bf1 {[%emt 0:01:43]} exd3 {[%emt 0:00:00]} 33. exd3 {[%emt 0:00:01]} Qe1 {[%emt 0:00:01]} 34. Nd6 {[%emt 0:00:23]} Rc6 {[%emt 0:00:24]} 35. Rb8+ {[%emt 0:00:22]} Kh7 {[%emt 0:00:00]} 36. Nxf7 {[%emt 0:00:17]} Ne2+ {[%emt 0:00:09]} 37. Kg2 {[%emt 0:00:30]} Nf4+ {[%emt 0:00:00]} 38. Kf3 {[%emt 0:00:23]} Rf6 {[%emt 0:00:07]} 39. Rh8+ {[%emt 0:00:14]} Kg6 {[%emt 0:00:01]} 40. Ne5+ {[%emt 0:00:01]} Qxe5 {[%emt 0:00:01]} 41. g5 {[%emt 0:00:16]} Qxg5 {[%emt 0:00:13]} 42. Qb2 {[%emt 0:00:16]} Nfxd3+ {[%emt 0:00:02]} 0-1

[Event "Memorial Ukrainian Chess Warriors 2024"]
[Site "Lviv"]
[Date "2024.03.15"]
[Round "8.8"]
[White "Mikhaletz, Lubomir"]
[Black "Pentsko, Stanislav"]
[Result "1-0"]
[ECO "A45"]
[WhiteElo "2278"]
[BlackElo "1634"]
[Annotator "TA"]
[PlyCount "105"]
[EventDate "2024.03.06"]
[EventType "swiss"]
[EventCountry "UKR"]
[SourceTitle "playchess.com"]
[Source "ChessBase"]
[SourceQuality "1"]
[TimeControl "600+5"]

{[%evp 9,105,-22,1,0,21,-10,-6,-9,2,-8,0,0,0,-12,0,0,21,31,42,45,39,41,47,18,24,0,0,-20,50,39,39,25,27,37,56,25,69,26,54,54,54,54,54,54,136,140,125,40,40,0,301,48,47,0,136,48,122,131,461,412,843,856,832,844,840,697,1014,860,950,920,29989,1915,29991,1229,1017,879,916,820,796,796,1284,1379,1344,1342,1308,1210,29976,29977,29977,29978,29978,29979,29975,29976,29980,29981,29982,29982]} 1. d4 {[%emt 0:00:01]} Nf6 {[%emt 0:00:00]} 2. Bg5 {[%emt 0:00:01]} d5 {[%emt 0:00:03]} 3. Bxf6 {[%emt 0:00:08]} exf6 {[%emt 0:00:19]} 4. e3 {[%emt 0:00:02]} Bd6 {[%emt 0:00:06]} 5. Ne2 {[%emt 0:00:03]} Bf5 {[%emt 0:00:11]} 6. Nd2 {[%emt 0:00:12]} Nd7 {[%emt 0:00:13]} 7. g3 {[%emt 0:00:05]} c6 {[%emt 0:00:06]} 8. c4 {[%emt 0:00:09] The position is equal.} dxc4 {[%emt 0:00:27]} 9. Nxc4 {[%emt 0:00:04]} Bb4+ {[%emt 0:00:02]} 10. Nc3 {[%emt 0:00:06]} Nb6 {[%emt 0:00:19]} 11. Nxb6 {[%emt 0:01:40]} Qxb6 {[%emt 0:00:32]} 12. Bg2 {[%emt 0:00:08]} Bxc3+ {[%emt 0:00:55]} 13. bxc3 {[%emt 0:00:02]} Qb2 {[%emt 0:00:02]} 14. Qc1 {[%emt 0:00:38]} Qb5 {[%emt 0:02:06]} 15. a4 {[%emt 0:00:05]} Qc4 {[%emt 0:01:11]} 16. a5 {[%emt 0:00:13]} O-O {[%emt 0:00:21][%cal Bh8f8,Bf8e8,Be8e4][%mdl 32]} 17. Qa3 {[%emt 0:00:44]} Rfe8 {[%emt 0:00:15]} 18. Rd1 {[%emt 0:00:52]} Be4 {[%emt 0:01:20]} (18... Bd3 $11) 19. Bxe4 $14 {[%emt 0:00:47]} Rxe4 {[%emt 0:00:02]} 20. Qb4 {[%emt 0:00:04]} Qxb4 {[%emt 0:01:27]} 21. cxb4 $11 {[%emt 0:00:02][%mdl 4096] Endgame. KRR-KRR} Rd8 {[%emt 0:00:05]} 22. Kd2 {[%emt 0:00:37]} f5 {[%emt 0:00:09]} 23. h4 {[%emt 0:00:38][%cal Oa5a6]} h5 {[%emt 0:00:08] [#]} 24. a6 $1 {[%emt 0:00:59]} b6 {[%emt 0:01:10]} (24... b5 25. Rc1) 25. Rc1 {[%emt 0:00:12]} Rd6 {[%emt 0:00:01]} 26. Rc3 {[%emt 0:00:43]} Kf8 {[%emt 0:00:07]} (26... g6 $14) 27. Rhc1 $16 {[%emt 0:00:35]} Ree6 {[%emt 0:00:01] [#]} 28. Rc4 {[%emt 0:00:37]} ({White should play} 28. b5 $1 $16) 28... Ke7 $14 {[%emt 0:00:08]} 29. b5 {[%emt 0:00:24]} cxb5 {[%emt 0:00:04][%mdl 8192] [#]} (29... c5 $11 {and Black stays safe.}) 30. Rc7+ $2 {[%emt 0:00:02]} (30. Rc8 $1 $18 {Strongly threatening R1c7+.} Rd7 31. R1c7) 30... Rd7 {[%emt 0:00:01]} 31. Rb7 {[%emt 0:00:11]} (31. Rc8 $1 $14 {might be stronger.}) 31... Kd8 {[%emt 0:00:15]} (31... Kd6 $1 $11) 32. Rb8+ $16 {[%emt 0:00:02][%mdl 1024] White has strong compensation.} Ke7 {[%emt 0:00:02]} 33. Rcc8 {[%emt 0:00:03] White is more active.} Red6 $2 {[%emt 0:00:11][%mdl 8192] Black cannot hold the game after this.} (33... Kd6 $16 {is tougher.}) 34. Rb7 {[%emt 0:00:05] Black must now prevent Ra8.} g6 {[%emt 0:00:05]} (34... Rd5 $142 35. Ra8 Ke6 36. Raxa7 (36. Rbxa7 Rxa7 37. Rxa7 g6 $18) 36... Rd8 37. Rxb6+ (37. Rxf7 b4 $18) 37... R5d6) 35. Ra8 $18 {[%emt 0:00:03]} Ke6 {[%emt 0:00:23]} 36. Raxa7 {[%emt 0:00:03]} Rd8 {[%emt 0:00:05]} 37. Rxf7 {[%emt 0:00:17]} Kd5 {[%emt 0:00:07]} 38. Kd3 {[%emt 0:00:26] Hoping for Rab7.} Rc8 {[%emt 0:00:07]} 39. Rac7 {[%emt 0:00:10]} Ra8 {[%emt 0:00:03]} 40. a7 {[%emt 0:00:05]} (40. f3 $142 Re8 41. a7 Ke6 42. a8=Q Rxd4+ 43. exd4 Rxa8 44. Rce7+ Kd6 45. Rd7+ Kc6 46. Rc7+ Kd5 47. Rfd7+ Ke6 48. d5+ Ke5 49. f4+ Kf6 50. Rf7#) 40... b4 {[%emt 0:00:04]} 41. Rfe7 {[%emt 0:00:07]} (41. f3 $142 Rxa7 42. e4+ (42. Rxa7 Rd8 43. Rf6 Rd6) 42... fxe4+ 43. fxe4+ Ke6 44. Rxa7 Rc6 45. Rae7+ (45. d5+ Ke5 46. Rfe7+ Kd6 47. Kd4 Rc4+ 48. Kxc4 b5+ 49. Kxb5 b3 50. Re6#) 45... Kd6 46. e5+ Kd5 47. Rd7+ Ke6 48. Ke4 Rc8 49. Rfe7#) 41... Rdd8 {[%emt 0:00:04]} 42. Rg7 {[%emt 0:00:07][%cal Of2f3] aiming for f3!} b3 {[%emt 0:00:08]} 43. Rc3 {[%emt 0:00:03]} b2 {[%emt 0:00:04]} 44. Rb3 {[%emt 0:00:01][%cal Og7b7] And now Rb7! would win.} (44. Rxg6 b1=Q+ (44... b1=R 45. f3 $11) 45. Kd2 Rxa7 46. Rgc6 Ra2+ 47. Rc2 Rxc2+ 48. Rxc2 Ra8 (48... Qb4+ $2 49. Ke2 $19) 49. g4 Qf1 (49... fxg4 {leads to mate.} 50. e4+ Kxe4 51. d5 Qb4+ 52. Rc3 Ra2+ 53. Kd1 Qd4+ 54. Kc1 Qxc3+ 55. Kd1 Qd2#) 50. f3 Ra1 (50... Qxf3 51. gxh5 Qf2+ 52. Kd3 Ra3+ 53. Rc3 Ra2 54. Rc5+ bxc5 55. e4+ fxe4+ 56. Kc3 Qg3#) 51. Kc3 Ra3+ (51... Qxf3 52. Kb2 Qd1 53. Kc3 Rb1 54. e4+ Kxe4 55. Rb2 Qxd4+ 56. Kb3 Rxb2+ 57. Ka3 Qb4#) 52. Kb4 Rxe3 53. gxh5 Qe1+ (53... Qxf3 54. Kb5 Ra3 55. Kxb6 Kd6 56. Rc5 Qa8 57. Kb5 Qb8+ 58. Kc4 Qb3#) (53... Qxf3 54. Kb5 Ra3 55. Kxb6 Kd6 56. Rc5 Qa8 57. Kb5 Qb8+ 58. Kc4 Qb3#)) 44... Rg8 {[%emt 0:00:03]} 45. Rxg8 {[%emt 0:00:07]} Rxg8 {[%emt 0:00:01]} 46. Rxb2 {[%emt 0:00:01] KR-KR} Kc6 {[%emt 0:00:03]} 47. Ra2 {[%emt 0:00:04]} Ra8 {[%emt 0:00:02]} 48. Kc4 {[%emt 0:00:02] White mates.} b5+ {[%emt 0:00:00]} 49. Kb4 {[%emt 0:00:02]} Kb6 {[%emt 0:00:04]} 50. f3 {[%emt 0:00:02]} Kc6 {[%emt 0:00:05]} 51. Ra6+ {[%emt 0:00:02]} Kb7 {[%emt 0:00:02]} 52. Kxb5 {[%emt 0:00:01]} Kc7 {[%emt 0:00:03]} 53. Rxg6 {[%emt 0:00:05] Weighted Error Value: White=0.21 (precise) /Black=0.87.  Loses game:     	---       	Black=2      Missed win:     	White=1     	---        Mistake:       	White=2     	Black=4      Inaccurate:     	White=5     	Black=3      OK:         	White=6     	Black=11     Best:        	White=5     	---} 1-0